[Event "Live Chess"]
[Site "Chess.com"]
[Date "2023.05.21"]
[Round "-"]
[White "ossie57"]
[Black "siddu198"]
[Result "0-1"]
[WhiteElo "1864"]
[BlackElo "1639"]
[TimeControl "300"]
[EndTime "5:11:52 PDT"]
[Termination "siddu198 won by checkmate"]

1. d4 {[%clk 0:04:59.1]} 1... e5 {[%clk 0:04:57.9]} 2. dxe5 {[%clk 0:04:58]}
2... d5 {[%clk 0:04:56.7]} 3. exd6 {[%clk 0:04:56]} 3... Bxd6 {[%clk 0:04:55.7]}
4. Nf3 {[%clk 0:04:55.4]} 4... Nf6 {[%clk 0:04:55.2]} 5. e3 {[%clk 0:04:54.7]}
5... Bg4 {[%clk 0:04:54.8]} 6. Be2 {[%clk 0:04:54]} 6... Nc6 {[%clk 0:04:54.4]}
7. O-O {[%clk 0:04:53.4]} 7... O-O {[%clk 0:04:52.8]} 8. Nc3 {[%clk 0:04:50.5]}
8... Qd7 {[%clk 0:04:49.9]} 9. b3 {[%clk 0:04:41]} 9... Rfd8 {[%clk 0:04:49.2]}
10. Bb2 {[%clk 0:04:39]} 10... Qe7 {[%clk 0:04:48.3]} 11. Qe1 {[%clk 0:04:37.8]}
11... Ne5 {[%clk 0:04:38]} 12. Nxe5 {[%clk 0:04:35.7]} 12... Bxe5 {[%clk
0:04:37.9]} 13. Bxg4 {[%clk 0:04:30.8]} 13... Nxg4 {[%clk 0:04:37.1]} 14. Qe2
{[%clk 0:04:25.3]} 14... Bxh2+ {[%clk 0:04:26.4]} 15. Kh1 {[%clk 0:04:22.7]}
15... Qh4 {[%clk 0:04:26]} 16. Qxg4 {[%clk 0:04:15.4]} 16... Qxg4 {[%clk
0:04:19.8]} 17. Kxh2 {[%clk 0:04:14.7]} 17... Rd6 {[%clk 0:04:12.9]} 18. Rh1
{[%clk 0:03:59.1]} 18... Rh6+ {[%clk 0:04:08.2]} 19. Kg1 {[%clk 0:03:58.1]}
19... Rxh1+ {[%clk 0:04:04.7]} 20. Kxh1 {[%clk 0:03:58]} 20... Rd8 {[%clk
0:04:03.1]} 21. f3 {[%clk 0:03:47.5]} 21... Qh4+ {[%clk 0:03:56.3]} 22. Kg1
{[%clk 0:03:46.6]} 22... Rd2 {[%clk 0:03:54.5]} 23. Ne4 {[%clk 0:03:44.3]} 23...
Rxc2 {[%clk 0:03:51.3]} 24. Rd1 {[%clk 0:03:43.2]} 24... Rxb2 {[%clk 0:03:43.4]}
25. g3 {[%clk 0:03:40.2]} 25... Qh2+ {[%clk 0:03:39.2]} 26. Kf1 {[%clk
0:03:38.8]} 26... Qg2+ {[%clk 0:03:34.9]} 27. Ke1 {[%clk 0:03:38]} 27... Qg1#
{[%clk 0:03:33]} 0-1

[Event "Live Chess"]
[Site "Chess.com"]
[Date "2023.05.21"]
[Round "-"]
[White "sanjesh_ananda"]
[Black "LiamClery2020"]
[Result "0-1"]
[WhiteElo "1242"]
[BlackElo "1982"]
[TimeControl "300"]
[EndTime "5:11:52 PDT"]
[Termination "LiamClery2020 won by resignation"]

1. e4 {[%clk 0:04:54.5]} 1... Nf6 {[%clk 0:04:59.9]} 2. e5 {[%clk 0:04:50.7]}
2... Nd5 {[%clk 0:04:58.4]} 3. d4 {[%clk 0:04:49.2]} 3... d6 {[%clk 0:04:57.4]}
4. Bc4 {[%clk 0:04:39.2]} 4... Nb6 {[%clk 0:04:51.1]} 5. Bb3 {[%clk 0:04:26.8]}
5... dxe5 {[%clk 0:04:48.7]} 6. Qf3 {[%clk 0:04:13.5]} 6... e6 {[%clk
0:04:40.3]} 7. dxe5 {[%clk 0:04:09]} 7... Nc6 {[%clk 0:04:38.7]} 8. Qg3 {[%clk
0:03:53.5]} 8... g6 {[%clk 0:04:32.3]} 9. Nf3 {[%clk 0:03:49.3]} 9... Bg7 {[%clk
0:04:31.2]} 10. Bg5 {[%clk 0:03:43.4]} 10... Qd7 {[%clk 0:04:26]} 11. O-O {[%clk
0:03:27.2]} 11... Nd4 {[%clk 0:04:18]} 12. Bf6 {[%clk 0:02:59.2]} 12... Ne2+
{[%clk 0:04:16.4]} 0-1

[Event "Live Chess"]
[Site "Chess.com"]
[Date "2023.05.21"]
[Round "-"]
[White "wot-not"]
[Black "Nicckui"]
[Result "0-1"]
[WhiteElo "1537"]
[BlackElo "1777"]
[TimeControl "300"]
[EndTime "5:12:07 PDT"]
[Termination "Nicckui won by resignation"]

1. d4 {[%clk 0:04:52.7]} 1... Nf6 {[%clk 0:04:58.7]} 2. c4 {[%clk 0:04:51.6]}
2... e6 {[%clk 0:04:58.2]} 3. Nc3 {[%clk 0:04:50.7]} 3... Bb4 {[%clk 0:04:57.9]}
4. Bg5 {[%clk 0:04:48.9]} 4... h6 {[%clk 0:04:56.4]} 5. Bd2 {[%clk 0:04:47]}
5... c5 {[%clk 0:04:55.6]} 6. e3 {[%clk 0:04:45.4]} 6... cxd4 {[%clk 0:04:54.7]}
7. exd4 {[%clk 0:04:44.8]} 7... O-O {[%clk 0:04:53.6]} 8. Bd3 {[%clk 0:04:39.8]}
8... d6 {[%clk 0:04:49.2]} 9. Nge2 {[%clk 0:04:38.8]} 9... b6 {[%clk 0:04:48.3]}
10. O-O {[%clk 0:04:33.4]} 10... Bb7 {[%clk 0:04:47]} 11. a3 {[%clk 0:04:32.2]}
11... Bxc3 {[%clk 0:04:45.9]} 12. Bxc3 {[%clk 0:04:31.5]} 12... Nbd7 {[%clk
0:04:44.5]} 13. Rc1 {[%clk 0:04:23.5]} 13... Ne4 {[%clk 0:04:43.4]} 14. f3
{[%clk 0:04:09.2]} 14... Nxc3 {[%clk 0:04:31.5]} 15. bxc3 {[%clk 0:04:01.4]}
15... Qg5 {[%clk 0:04:29.8]} 16. Be4 {[%clk 0:03:50]} 16... Bxe4 {[%clk
0:04:24.5]} 17. fxe4 {[%clk 0:03:48.7]} 17... Nf6 {[%clk 0:04:23.5]} 18. Ng3
{[%clk 0:03:41.7]} 18... Qe3+ {[%clk 0:04:17.8]} 19. Kh1 {[%clk 0:03:39.2]}
19... Nxe4 {[%clk 0:04:17]} 20. Nxe4 {[%clk 0:03:37.4]} 20... Qxe4 {[%clk
0:04:16.9]} 21. Qb3 {[%clk 0:03:20]} 21... Rac8 {[%clk 0:04:12.5]} 22. c5 {[%clk
0:03:14]} 22... dxc5 {[%clk 0:04:07.1]} 23. dxc5 {[%clk 0:03:13.2]} 23... Rxc5
{[%clk 0:04:05.4]} 24. Rfe1 {[%clk 0:03:09.2]} 24... Qc4 {[%clk 0:04:02.3]} 25.
Qc2 {[%clk 0:03:05.4]} 25... Rfc8 {[%clk 0:03:59.3]} 26. Red1 {[%clk 0:03:02.5]}
26... Qxc3 {[%clk 0:03:48.4]} 27. Qxc3 {[%clk 0:03:01.2]} 27... Rxc3 {[%clk
0:03:46.6]} 28. Rxc3 {[%clk 0:03:00.2]} 28... Rxc3 {[%clk 0:03:46.5]} 29. h3
{[%clk 0:02:59.1]} 29... Rxa3 {[%clk 0:03:44.6]} 0-1

[Event "Live Chess"]
[Site "Chess.com"]
[Date "2023.05.21"]
[Round "-"]
[White "LiamBellwood"]
[Black "AMCWAML"]
[Result "1/2-1/2"]
[WhiteElo "1911"]
[BlackElo "2323"]
[TimeControl "300"]
[EndTime "5:12:18 PDT"]
[Termination "Game drawn by repetition"]

1. d4 {[%clk 0:04:59.4]} 1... Nf6 {[%clk 0:04:57.9]} 2. Nc3 {[%clk 0:04:59.1]}
2... e6 {[%clk 0:04:57.6]} 3. Bf4 {[%clk 0:04:58.7]} 3... d5 {[%clk 0:04:55.8]}
4. Nb5 {[%clk 0:04:57.9]} 4... Na6 {[%clk 0:04:54]} 5. a3 {[%clk 0:04:57.6]}
5... Bd7 {[%clk 0:04:48.1]} 6. e3 {[%clk 0:04:56.6]} 6... c6 {[%clk 0:04:42.4]}
7. Nc3 {[%clk 0:04:55.5]} 7... Be7 {[%clk 0:04:40.9]} 8. Nf3 {[%clk 0:04:54.9]}
8... O-O {[%clk 0:04:40.2]} 9. Ne5 {[%clk 0:04:54.5]} 9... Be8 {[%clk
0:04:38.8]} 10. Bxa6 {[%clk 0:04:50.5]} 10... bxa6 {[%clk 0:04:37.6]} 11. O-O
{[%clk 0:04:50.4]} 11... c5 {[%clk 0:04:35.9]} 12. Rb1 {[%clk 0:04:47.3]} 12...
Rc8 {[%clk 0:04:32.2]} 13. Qe2 {[%clk 0:04:38.1]} 13... Qb6 {[%clk 0:04:24.7]}
14. Rfd1 {[%clk 0:04:28.6]} 14... cxd4 {[%clk 0:04:17.5]} 15. exd4 {[%clk
0:04:26.2]} 15... Bb5 {[%clk 0:04:13]} 16. Nxb5 {[%clk 0:04:23.8]} 16... axb5
{[%clk 0:04:12.9]} 17. c3 {[%clk 0:04:19.1]} 17... a5 {[%clk 0:04:11.7]} 18. Bg5
{[%clk 0:04:18]} 18... Rfd8 {[%clk 0:04:07.2]} 19. Rd3 {[%clk 0:04:11.8]} 19...
b4 {[%clk 0:04:04.9]} 20. axb4 {[%clk 0:04:00.2]} 20... axb4 {[%clk 0:04:04.8]}
21. Ra1 {[%clk 0:02:49.1]} 21... bxc3 {[%clk 0:04:00.1]} 22. bxc3 {[%clk
0:02:49]} 22... Rb8 {[%clk 0:03:43.8]} 23. h3 {[%clk 0:02:29.1]} 23... Ra8
{[%clk 0:03:24.8]} 24. Rad1 {[%clk 0:02:10.3]} 24... Qb5 {[%clk 0:03:06.7]} 25.
Re3 {[%clk 0:02:04.2]} 25... Qxe2 {[%clk 0:03:04.8]} 26. Rxe2 {[%clk 0:02:04.1]}
26... Rdc8 {[%clk 0:03:03.6]} 27. Rc2 {[%clk 0:01:56.3]} 27... Ra3 {[%clk
0:02:58.3]} 28. Rdc1 {[%clk 0:01:55]} 28... Rb3 {[%clk 0:02:53]} 29. Bxf6 {[%clk
0:01:51.1]} 29... gxf6 {[%clk 0:02:48.4]} 30. Nd7 {[%clk 0:01:49.9]} 30... Kg7
{[%clk 0:02:37.5]} 31. c4 {[%clk 0:01:37.9]} 31... Ba3 {[%clk 0:02:28.4]} 32.
cxd5 {[%clk 0:01:25.4]} 32... Rxc2 {[%clk 0:02:11.4]} 33. Rxc2 {[%clk
0:01:24.6]} 33... exd5 {[%clk 0:02:03.3]} 34. Nc5 {[%clk 0:01:17.3]} 34... Rb1+
{[%clk 0:01:58.9]} 35. Kh2 {[%clk 0:01:15.4]} 35... Rd1 {[%clk 0:01:58.4]} 36.
Rc3 {[%clk 0:00:59.2]} 36... Bb2 {[%clk 0:01:56.8]} 37. Rg3+ {[%clk 0:00:53.3]}
37... Kf8 {[%clk 0:01:56]} 38. Nd7+ {[%clk 0:00:48.9]} 38... Ke7 {[%clk
0:01:54.8]} 39. Nb6 {[%clk 0:00:43.6]} 39... Rxd4 {[%clk 0:01:48.6]} 40. Rb3
{[%clk 0:00:42.1]} 40... Bc1 {[%clk 0:01:43.6]} 41. g3 {[%clk 0:00:37.3]} 41...
Rd2 {[%clk 0:01:35.7]} 42. Kg2 {[%clk 0:00:36]} 42... d4 {[%clk 0:01:28.1]} 43.
Nd5+ {[%clk 0:00:32.8]} 43... Ke6 {[%clk 0:01:24.5]} 44. Nf4+ {[%clk 0:00:32.4]}
44... Kd7 {[%clk 0:01:21.3]} 45. Rb7+ {[%clk 0:00:31.2]} 45... Ke8 {[%clk
0:01:19.5]} 46. Rc7 {[%clk 0:00:28]} 46... Ba3 {[%clk 0:01:11.2]} 47. Nd5 {[%clk
0:00:26.2]} 47... d3 {[%clk 0:00:59.4]} 48. Nxf6+ {[%clk 0:00:25]} 48... Kd8
{[%clk 0:00:58.7]} 49. Rd7+ {[%clk 0:00:23.9]} 49... Kc8 {[%clk 0:00:57.8]} 50.
Rd4 {[%clk 0:00:19.6]} 50... Bc5 {[%clk 0:00:54.6]} 51. Rf4 {[%clk 0:00:12.8]}
51... Re2 {[%clk 0:00:54]} 52. Ne4 {[%clk 0:00:11.4]} 52... d2 {[%clk
0:00:33.6]} 53. Nxd2 {[%clk 0:00:11]} 53... Rxd2 {[%clk 0:00:33.5]} 54. Rxf7
{[%clk 0:00:10.7]} 54... h6 {[%clk 0:00:27.1]} 55. g4 {[%clk 0:00:10.4]} 55...
Kd8 {[%clk 0:00:25.5]} 56. Kg3 {[%clk 0:00:09.5]} 56... Ke8 {[%clk 0:00:25]} 57.
Rf5 {[%clk 0:00:08.9]} 57... Bd6+ {[%clk 0:00:24.2]} 58. f4 {[%clk 0:00:07.6]}
58... Rd3+ {[%clk 0:00:23.2]} 59. Kf2 {[%clk 0:00:06.5]} 59... Rxh3 {[%clk
0:00:21.7]} 60. Rh5 {[%clk 0:00:06.1]} 60... Rxh5 {[%clk 0:00:19.5]} 61. gxh5
{[%clk 0:00:06]} 61... Kf7 {[%clk 0:00:19.2]} 62. Kg3 {[%clk 0:00:05.3]} 62...
Kf6 {[%clk 0:00:19.1]} 63. Kg4 {[%clk 0:00:05.2]} 63... Be7 {[%clk 0:00:18]} 64.
f5 {[%clk 0:00:05.1]} 64... Bd6 {[%clk 0:00:17.6]} 65. Kh3 {[%clk 0:00:03.6]}
65... Kxf5 {[%clk 0:00:17.3]} 66. Kg2 {[%clk 0:00:03.5]} 66... Kg5 {[%clk
0:00:16.9]} 67. Kh1 {[%clk 0:00:03.4]} 67... Kxh5 {[%clk 0:00:16.6]} 68. Kg2
{[%clk 0:00:03.3]} 68... Kg4 {[%clk 0:00:16.5]} 69. Kh1 {[%clk 0:00:03.2]} 69...
Kg5 {[%clk 0:00:16.3]} 70. Kg2 {[%clk 0:00:03.1]} 70... Kg6 {[%clk 0:00:16.2]}
71. Kh1 {[%clk 0:00:03]} 71... Kh7 {[%clk 0:00:16.1]} 72. Kg2 {[%clk 0:00:02.9]}
72... Kg6 {[%clk 0:00:16]} 73. Kh1 {[%clk 0:00:02.8]} 73... Kg5 {[%clk
0:00:15.9]} 74. Kg2 {[%clk 0:00:02.7]} 74... h5 {[%clk 0:00:15.8]} 75. Kh1
{[%clk 0:00:02.6]} 75... Kg6 {[%clk 0:00:15.7]} 76. Kg2 {[%clk 0:00:02.5]} 76...
Kh6 {[%clk 0:00:15.6]} 77. Kh1 {[%clk 0:00:02.4]} 77... Kg6 {[%clk 0:00:15.5]}
78. Kg2 {[%clk 0:00:02.3]} 78... Kg7 {[%clk 0:00:15.4]} 79. Kh1 {[%clk
0:00:02.2]} 79... Kg6 {[%clk 0:00:15.3]} 1/2-1/2

[Event "Live Chess"]
[Site "Chess.com"]
[Date "2023.05.21"]
[Round "-"]
[White "GEMdzq"]
[Black "f4nomore"]
[Result "1-0"]
[WhiteElo "2285"]
[BlackElo "1395"]
[TimeControl "300"]
[EndTime "5:12:22 PDT"]
[Termination "GEMdzq won by checkmate"]

1. e4 {[%clk 0:04:59.3]} 1... g6 {[%clk 0:04:59.9]} 2. d4 {[%clk 0:04:58.3]}
2... Bg7 {[%clk 0:04:57.6]} 3. Nc3 {[%clk 0:04:57.9]} 3... d6 {[%clk 0:04:55.5]}
4. Bc4 {[%clk 0:04:56.5]} 4... e6 {[%clk 0:04:52]} 5. Nf3 {[%clk 0:04:54.2]}
5... Ne7 {[%clk 0:04:49.9]} 6. O-O {[%clk 0:04:52.5]} 6... O-O {[%clk
0:04:48.5]} 7. Bg5 {[%clk 0:04:50.6]} 7... c6 {[%clk 0:04:47.2]} 8. a4 {[%clk
0:04:47]} 8... Qe8 {[%clk 0:04:46]} 9. Qd2 {[%clk 0:04:44.5]} 9... d5 {[%clk
0:04:43.4]} 10. exd5 {[%clk 0:04:41.4]} 10... cxd5 {[%clk 0:04:41.8]} 11. Bb3
{[%clk 0:04:37.3]} 11... Nf5 {[%clk 0:04:40.4]} 12. Rfe1 {[%clk 0:04:34]} 12...
h6 {[%clk 0:04:34.8]} 13. Bf4 {[%clk 0:04:26]} 13... Nc6 {[%clk 0:04:26.5]} 14.
Nxd5 {[%clk 0:04:24.6]} 14... exd5 {[%clk 0:04:22]} 15. Rxe8 {[%clk 0:04:22.6]}
15... Rxe8 {[%clk 0:04:18.4]} 16. Bxd5 {[%clk 0:04:20.5]} 16... Bd7 {[%clk
0:04:10]} 17. h3 {[%clk 0:03:59.2]} 17... Rab8 {[%clk 0:03:58.5]} 18. g4 {[%clk
0:03:56.1]} 18... Nfxd4 {[%clk 0:03:50.1]} 19. Nxd4 {[%clk 0:03:54.1]} 19...
Nxd4 {[%clk 0:03:47.7]} 20. Be3 {[%clk 0:03:43.8]} 20... Nc6 {[%clk 0:03:28.9]}
21. Bxh6 {[%clk 0:03:41.9]} 21... Bxb2 {[%clk 0:03:21.5]} 22. Rb1 {[%clk
0:03:33.9]} 22... Bf6 {[%clk 0:03:04]} 23. Bxf7+ {[%clk 0:03:28.9]} 23... Kxf7
{[%clk 0:02:59.5]} 24. Qxd7+ {[%clk 0:03:27.9]} 24... Re7 {[%clk 0:02:57.3]} 25.
Qd5+ {[%clk 0:03:26.8]} 25... Ke8 {[%clk 0:02:52.3]} 26. Rd1 {[%clk 0:03:14.9]}
26... Rd8 {[%clk 0:02:48.3]} 27. Qg8# {[%clk 0:03:13.9]} 1-0

[Event "Live Chess"]
[Site "Chess.com"]
[Date "2023.05.21"]
[Round "-"]
[White "DoYouLikeCurry"]
[Black "Brooms1989"]
[Result "1-0"]
[WhiteElo "1442"]
[BlackElo "1160"]
[TimeControl "300"]
[EndTime "5:12:25 PDT"]
[Termination "DoYouLikeCurry won by checkmate"]

1. e4 {[%clk 0:04:58.2]} 1... e5 {[%clk 0:04:58.1]} 2. Nc3 {[%clk 0:04:56.8]}
2... Nf6 {[%clk 0:04:56.4]} 3. f4 {[%clk 0:04:55.4]} 3... d5 {[%clk 0:04:55.4]}
4. fxe5 {[%clk 0:04:53.8]} 4... Nxe4 {[%clk 0:04:54.5]} 5. Qf3 {[%clk
0:04:52.9]} 5... Nxc3 {[%clk 0:04:52.1]} 6. bxc3 {[%clk 0:04:52.8]} 6... Nc6
{[%clk 0:04:47.2]} 7. d4 {[%clk 0:04:51]} 7... Be7 {[%clk 0:04:38.3]} 8. Bd3
{[%clk 0:04:42.3]} 8... f6 {[%clk 0:04:28.6]} 9. Qh5+ {[%clk 0:04:34.1]} 9...
Kf8 {[%clk 0:04:21.7]} 10. Nf3 {[%clk 0:04:27.2]} 10... Qe8 {[%clk 0:03:57.7]}
11. Qxe8+ {[%clk 0:04:25.2]} 11... Kxe8 {[%clk 0:03:56.6]} 12. exf6 {[%clk
0:04:20.3]} 12... Bxf6 {[%clk 0:03:53.7]} 13. O-O {[%clk 0:04:18.4]} 13... Kf7
{[%clk 0:03:49.7]} 14. Ba3 {[%clk 0:04:10.4]} 14... Re8 {[%clk 0:03:45.7]} 15.
Ng5+ {[%clk 0:04:05.1]} 15... Kg8 {[%clk 0:03:43.7]} 16. Bxh7+ {[%clk
0:04:02.8]} 16... Kh8 {[%clk 0:03:42]} 17. Bg6 {[%clk 0:04:01]} 17... Re2 {[%clk
0:03:31.8]} 18. Rf3 {[%clk 0:03:54]} 18... Bxg5 {[%clk 0:03:26.6]} 19. Rf8#
{[%clk 0:03:43.6]} 1-0

[Event "Live Chess"]
[Site "Chess.com"]
[Date "2023.05.21"]
[Round "-"]
[White "Pablo_dmp"]
[Black "Chesscoach_Golichenko"]
[Result "0-1"]
[WhiteElo "1875"]
[BlackElo "2612"]
[TimeControl "300"]
[EndTime "5:12:32 PDT"]
[Termination "Chesscoach_Golichenko won by resignation"]

1. e4 {[%clk 0:04:59.6]} 1... Nf6 {[%clk 0:04:54.7]} 2. e5 {[%clk 0:04:58.5]}
2... Nd5 {[%clk 0:04:54]} 3. c4 {[%clk 0:04:57.9]} 3... Nb6 {[%clk 0:04:52.6]}
4. a4 {[%clk 0:04:57.5]} 4... a5 {[%clk 0:04:50.8]} 5. Ra3 {[%clk 0:04:56]} 5...
e6 {[%clk 0:04:46.7]} 6. Rg3 {[%clk 0:04:54.3]} 6... c5 {[%clk 0:04:36.9]} 7.
Nc3 {[%clk 0:04:50.7]} 7... Nc6 {[%clk 0:04:35.2]} 8. f4 {[%clk 0:04:41.9]} 8...
d6 {[%clk 0:04:27.5]} 9. Nf3 {[%clk 0:04:35.3]} 9... dxe5 {[%clk 0:04:24.7]} 10.
fxe5 {[%clk 0:04:35.2]} 10... g6 {[%clk 0:04:19]} 11. Ne4 {[%clk 0:04:03]} 11...
Bg7 {[%clk 0:03:59.4]} 12. Nd6+ {[%clk 0:03:58.8]} 12... Kf8 {[%clk 0:03:50.5]}
13. Ng5 {[%clk 0:03:32.7]} 13... Nxe5 {[%clk 0:03:42.9]} 14. Ngxf7 {[%clk
0:03:25.2]} 14... Nxf7 {[%clk 0:03:34.5]} 15. Nxf7 {[%clk 0:03:06.2]} 15... Kxf7
{[%clk 0:03:19.9]} 16. Bd3 {[%clk 0:03:06.1]} 16... Rf8 {[%clk 0:03:04.1]} 17.
O-O+ {[%clk 0:03:04.6]} 17... Kg8 {[%clk 0:03:03.2]} 18. Re1 {[%clk 0:03:00.9]}
18... e5 {[%clk 0:03:00.7]} 19. b3 {[%clk 0:02:50.3]} 19... Bf5 {[%clk 0:02:58]}
20. Be2 {[%clk 0:02:45.8]} 20... e4 {[%clk 0:02:56.1]} 21. d3 {[%clk 0:02:43.7]}
21... Be5 {[%clk 0:02:46.9]} 22. Bg5 {[%clk 0:02:33.7]} 22... Qc7 {[%clk
0:02:34.2]} 23. dxe4 {[%clk 0:02:12.7]} 23... Bxg3 {[%clk 0:02:31.7]} 24. hxg3
{[%clk 0:02:09.4]} 24... Be6 {[%clk 0:02:26.3]} 25. Bf3 {[%clk 0:02:04]} 25...
Qxg3 {[%clk 0:02:21.6]} 26. Be7 {[%clk 0:01:54.8]} 26... Rxf3 {[%clk 0:02:19.3]}
27. Qxf3 {[%clk 0:01:51.3]} 27... Qxf3 {[%clk 0:02:18.5]} 28. gxf3 {[%clk
0:01:49.9]} 28... Nd7 {[%clk 0:02:17.9]} 29. Rd1 {[%clk 0:01:47.9]} 29... b6
{[%clk 0:02:16.2]} 30. Rd6 {[%clk 0:01:46.2]} 30... Kf7 {[%clk 0:02:14.9]} 31.
Bg5 {[%clk 0:01:40.9]} 31... Rb8 {[%clk 0:02:09.5]} 32. Bf4 {[%clk 0:01:39]}
32... Rb7 {[%clk 0:02:08.3]} 33. Kf2 {[%clk 0:01:36.9]} 33... h5 {[%clk
0:01:59.2]} 34. Bg3 {[%clk 0:01:31.7]} 34... Ke7 {[%clk 0:01:57.3]} 35. Rd2
{[%clk 0:01:27.5]} 35... g5 {[%clk 0:01:55.4]} 36. Bd6+ {[%clk 0:01:24.9]} 36...
Kf7 {[%clk 0:01:54]} 37. Ke3 {[%clk 0:01:19.5]} 37... Nf6 {[%clk 0:01:51.5]} 38.
e5 {[%clk 0:01:16.3]} 38... Ne8 {[%clk 0:01:50.3]} 39. Rg2 {[%clk 0:01:12.7]}
39... Nxd6 {[%clk 0:01:45.7]} 40. exd6 {[%clk 0:01:12.6]} 40... Kf6 {[%clk
0:01:44.6]} 41. f4 {[%clk 0:01:11.2]} 41... g4 {[%clk 0:01:42.5]} 0-1

[Event "Live Chess"]
[Site "Chess.com"]
[Date "2023.05.21"]
[Round "-"]
[White "OleksiyJr1"]
[Black "Duke_of_Bebington"]
[Result "1-0"]
[WhiteElo "1020"]
[BlackElo "1585"]
[TimeControl "300"]
[EndTime "5:12:50 PDT"]
[Termination "OleksiyJr1 won by resignation"]

1. e4 {[%clk 0:04:58.8]} 1... e5 {[%clk 0:04:58.9]} 2. Nf3 {[%clk 0:04:57.2]}
2... Nf6 {[%clk 0:04:56.3]} 3. Nxe5 {[%clk 0:04:50.1]} 3... d6 {[%clk 0:04:43]}
4. Nf3 {[%clk 0:04:45.7]} 4... Nxe4 {[%clk 0:04:41.3]} 5. Bd3 {[%clk 0:04:42.1]}
5... Nf6 {[%clk 0:04:22.1]} 6. O-O {[%clk 0:04:27]} 6... Be7 {[%clk 0:04:19.6]}
7. Re1 {[%clk 0:04:22.7]} 7... O-O {[%clk 0:04:17.7]} 8. Ng5 {[%clk 0:04:17.8]}
8... Bg4 {[%clk 0:04:02.4]} 9. Bxh7+ {[%clk 0:04:12.1]} 9... Kh8 {[%clk
0:03:53.2]} 10. f3 {[%clk 0:04:10.8]} 10... Bxf3 {[%clk 0:03:41.6]} 11. Qxf3
{[%clk 0:04:07.6]} 11... Nxh7 {[%clk 0:03:40.5]} 12. Nxh7 {[%clk 0:04:05.8]}
12... Kxh7 {[%clk 0:03:39.3]} 13. Qxb7 {[%clk 0:03:59.8]} 13... Nd7 {[%clk
0:03:36.3]} 14. Qe4+ {[%clk 0:03:42.6]} 14... Kg8 {[%clk 0:03:27.2]} 15. Qxe7
{[%clk 0:03:25.5]} 15... Qxe7 {[%clk 0:03:19.5]} 16. Rxe7 {[%clk 0:03:22.5]}
16... Rfd8 {[%clk 0:03:18.1]} 17. Nc3 {[%clk 0:03:21]} 17... Rac8 {[%clk
0:03:14.9]} 18. d3 {[%clk 0:03:20.1]} 18... Ne5 {[%clk 0:03:13.8]} 19. Bf4
{[%clk 0:03:17.7]} 19... f6 {[%clk 0:03:11.8]} 20. Bxe5 {[%clk 0:03:16.8]} 20...
dxe5 {[%clk 0:03:06.3]} 21. Re1 {[%clk 0:03:13.6]} 21... Kf8 {[%clk 0:03:05.1]}
22. Re6 {[%clk 0:03:09.9]} 22... Kf7 {[%clk 0:03:01]} 23. Rc6 {[%clk 0:03:08.5]}
23... Rb8 {[%clk 0:02:56]} 24. b3 {[%clk 0:03:07]} 24... Rd7 {[%clk 0:02:53.3]}
25. Rc4 {[%clk 0:03:02.4]} 25... Rb6 {[%clk 0:02:45.2]} 26. Na4 {[%clk
0:02:45.8]} 26... Ra6 {[%clk 0:02:35.4]} 27. Nc5 {[%clk 0:02:39]} 27... Rdd6
{[%clk 0:02:33.5]} 28. Nxa6 {[%clk 0:02:37.8]} 28... Rxa6 {[%clk 0:02:33.4]} 29.
Rxc7+ {[%clk 0:02:36.6]} 1-0

[Event "Live Chess"]
[Site "Chess.com"]
[Date "2023.05.21"]
[Round "-"]
[White "MartynColebrook"]
[Black "Mechhead7"]
[Result "0-1"]
[WhiteElo "1080"]
[BlackElo "1777"]
[TimeControl "300"]
[EndTime "5:12:58 PDT"]
[Termination "Mechhead7 won by resignation"]

1. e4 {[%clk 0:04:58.4]} 1... e5 {[%clk 0:04:57.1]} 2. Nf3 {[%clk 0:04:55.7]}
2... Nc6 {[%clk 0:04:56.3]} 3. Bc4 {[%clk 0:04:53.9]} 3... Bc5 {[%clk
0:04:53.5]} 4. c3 {[%clk 0:04:52.2]} 4... d6 {[%clk 0:04:45]} 5. d4 {[%clk
0:04:49.9]} 5... exd4 {[%clk 0:04:43.4]} 6. cxd4 {[%clk 0:04:48.1]} 6... Bb4+
{[%clk 0:04:42.8]} 7. Nc3 {[%clk 0:04:45.3]} 7... Bg4 {[%clk 0:04:38.7]} 8.
Bxf7+ {[%clk 0:04:33.8]} 8... Kxf7 {[%clk 0:04:37.6]} 9. Ng5+ {[%clk 0:04:31.7]}
9... Ke8 {[%clk 0:04:33.9]} 10. Qxg4 {[%clk 0:04:28.2]} 10... Nf6 {[%clk
0:04:32.9]} 11. Qe6+ {[%clk 0:04:23.6]} 11... Qe7 {[%clk 0:04:32.1]} 12. Qxe7+
{[%clk 0:04:09.6]} 12... Kxe7 {[%clk 0:04:31.4]} 13. d5 {[%clk 0:04:06.5]} 13...
Nd4 {[%clk 0:04:26.8]} 14. Kd1 {[%clk 0:03:59.8]} 14... h6 {[%clk 0:04:23.9]}
15. Nf3 {[%clk 0:03:50.1]} 15... Nxf3 {[%clk 0:04:22.2]} 16. gxf3 {[%clk
0:03:48.6]} 16... Raf8 {[%clk 0:04:17.4]} 17. Rg1 {[%clk 0:03:44.3]} 17... g5
{[%clk 0:04:10.3]} 18. Nb5 {[%clk 0:03:42.2]} 18... Kd7 {[%clk 0:04:04.6]} 19.
Be3 {[%clk 0:03:36.9]} 19... a6 {[%clk 0:04:02.1]} 20. Nd4 {[%clk 0:03:29.6]}
20... Ne8 {[%clk 0:03:51.3]} 21. Ne6 {[%clk 0:03:25.3]} 21... Rxf3 {[%clk
0:03:49.4]} 22. Rc1 {[%clk 0:03:15.9]} 22... Ba5 {[%clk 0:03:39.3]} 23. Ke2
{[%clk 0:03:13.1]} 23... Rf7 {[%clk 0:03:33.3]} 24. a3 {[%clk 0:03:03.9]} 24...
Ng7 {[%clk 0:03:20.6]} 25. Nd4 {[%clk 0:02:54.8]} 25... Bb6 {[%clk 0:03:09.6]}
26. Rc2 {[%clk 0:02:37.4]} 26... Re8 {[%clk 0:03:06.4]} 27. Kd3 {[%clk
0:02:26.2]} 27... Rfe7 {[%clk 0:02:57.4]} 28. f3 {[%clk 0:02:22.1]} 28... Rf7
{[%clk 0:02:55.9]} 29. Rf1 {[%clk 0:02:19.4]} 29... Nh5 {[%clk 0:02:51]} 30. Nf5
{[%clk 0:02:08.6]} 30... Bxe3 {[%clk 0:02:47.6]} 31. Kxe3 {[%clk 0:01:58.9]}
31... Rf6 {[%clk 0:02:46.5]} 32. Nd4 {[%clk 0:01:50.5]} 32... Nf4 {[%clk
0:02:41.6]} 33. Ne6 {[%clk 0:01:22.7]} 33... Nxe6 {[%clk 0:02:35.7]} 34. dxe6+
{[%clk 0:01:20.7]} 34... Rfxe6 {[%clk 0:02:32.8]} 35. Rfc1 {[%clk 0:01:16.9]}
35... c6 {[%clk 0:02:31.8]} 36. b4 {[%clk 0:01:14.9]} 36... d5 {[%clk
0:02:28.5]} 37. h4 {[%clk 0:00:50]} 37... dxe4 {[%clk 0:02:17.5]} 38. hxg5
{[%clk 0:00:39.9]} 38... exf3+ {[%clk 0:02:14.1]} 39. Kxf3 {[%clk 0:00:37.9]}
39... hxg5 {[%clk 0:02:13.2]} 40. Rc3 {[%clk 0:00:27.5]} 40... Re5 {[%clk
0:02:08.3]} 41. Kg4 {[%clk 0:00:19.3]} 41... Kc7 {[%clk 0:02:07.3]} 42. Rc5
{[%clk 0:00:14.1]} 42... Kb6 {[%clk 0:02:03.2]} 43. Rxe5 {[%clk 0:00:12.1]}
43... Rxe5 {[%clk 0:02:02.4]} 44. Rc5 {[%clk 0:00:08.8]} 44... Rxc5 {[%clk
0:02:01]} 45. bxc5+ {[%clk 0:00:07.3]} 45... Kxc5 {[%clk 0:02:00.9]} 46. Kxg5
{[%clk 0:00:06.3]} 46... Kc4 {[%clk 0:02:00.1]} 0-1